bitfinex-derivatives/quotes_SOLF0:USTF0_20250514
["timestamp","ask_amount","ask_price","bid_price","bid_amount"]
[1747238157417,64.64,177.08,177.04,5.6475]
[1747238157616,60.5,177.07,177.04,5.6475]
[1747238157816,60.5,177.06,177.03,5.6476]
[1747238158017,60.5,177.06,176.99,60.64]
[1747238158323,60.5,177.06,177.04,5.6473]
[1747238158917,5.6467,177.07,176.99,60.64]
[1747238158918,4.0,177.08,176.99,60.64]
[1747238159120,64.48,177.08,176.99,60.64]
[1747238159621,64.48,177.08,177.07,5.6466]
[1747238159823,60.48,177.08,177.07,5.6466]
[1747238160223,129.1862851,177.11,177.09,5.6459]
[1747238160421,60.48,177.1,177.04,60.48]
[1747238161223,60.48,177.1,177.06,5.6467]
[1747238161424,60.48,177.1,177.04,60.48]
[1747238161724,5.6461,177.09,177.04,60.48]
[1747238162226,5.6461,177.09,177.06,5.6467]
[1747238165219,60.48,177.1,177.05,5.6472]
[1747238165420,60.48,177.1,177.04,60.48]
[1747238166228,5.6466,177.08,177.04,66.1273]
[1747238166421,5.6466,177.08,177.04,60.48]
[1747238167327,5.6466,177.08,177.05,5.6472]
[1747238167829,5.6461,177.09,177.05,5.6472]
[1747238168026,60.42,177.1,177.04,60.48]
[1747238168624,60.42,177.1,177.07,5.6466]
[1747238168824,60.42,177.1,177.04,60.48]
[1747238169323,5.6452,177.12,177.08,5.646]
[1747238169532,60.42,177.1,177.08,5.646]
[1747238170226,60.42,177.1,177.09,5.6459]
[1747238170724,4.0,177.14,177.08,60.48]
[1747238171025,60.42,177.13,177.12,5.6448]
[1747238171241,5.6438,177.16,177.08,60.48]
[1747238171525,60.42,177.15,177.13,5.6444]
[1747238172832,66.0642,177.15,177.08,60.48]
[1747238173329,66.0642,177.15,177.12,5.6448]
[1747238173523,60.42,177.15,177.08,60.48]
[1747238174425,66.0641,177.15,177.12,5.6448]
[1747238175031,60.42,177.15,177.13,5.6446]
[1747238176935,66.064,177.15,177.12,5.6449]
[1747238177229,60.42,177.15,177.12,5.6449]
[1747238177430,5.6439,177.16,177.13,5.6445]
[1747238177626,60.36,177.15,177.13,5.6445]
[1747238178738,60.36,177.15,177.08,60.48]
[1747238179334,135.03222683,177.2,177.08,60.48]
[1747238179536,5.6433,177.18,177.08,60.48]
[1747238179837,60.36,177.19,177.14,5.6441]
[1747238180035,5.6437,177.17,177.14,5.6441]
[1747238180335,60.36,177.19,177.11,60.46]
[1747238180535,5.6449,177.13,177.07,60.46]
[1747238180739,60.36,177.13,177.07,60.46]
[1747238180933,60.36,177.13,177.08,5.6461]
[1747238181236,60.36,177.13,177.07,60.46]
[1747238181736,5.6451,177.12,177.09,5.6458]
[1747238182131,60.36,177.13,177.07,60.46]
[1747238183841,60.36,177.13,177.12,5.645]
[1747238184437,60.34,177.15,177.14,5.6444]
[1747238186040,60.34,177.15,177.13,5.6445]
[1747238186338,60.34,177.15,177.07,60.46]
[1747238186730,60.34,177.15,177.14,5.6444]
[1747238187040,4.0,177.18,177.11,60.32]
[1747238187230,64.32,177.18,177.11,60.32]
[1747238187637,64.32,177.18,177.17,5.6434]
[1747238187930,64.32,177.18,177.11,60.32]
[1747238188740,64.32,177.18,177.17,5.6434]
[1747238189141,64.32,177.18,177.11,60.32]
[1747238189743,64.32,177.18,177.16,5.6435]
[1747238190137,64.3,177.18,177.16,5.6435]
[1747238191343,69.9431,177.18,177.16,5.6435]
[1747238191644,64.3,177.18,177.16,5.6435]
[1747238191943,64.3,177.18,177.11,60.32]
[1747238192744,64.3,177.18,177.16,5.6435]
[1747238193843,64.3,177.18,177.11,60.32]
[1747238194344,64.3,177.18,177.16,5.6436]
[1747238194850,9.6431,177.18,177.16,5.6436]
[1747238195150,64.28,177.18,177.16,5.6436]
[1747238195648,4.0,177.18,177.17,5.6434]
[1747238195944,60.28,177.19,177.15,60.3]
[1747238196151,11.97531182,177.24,177.1,70.31801182]
[1747238196152,60.26,177.21,177.16,60.3]
[1747238196341,60.26,177.21,177.17,60.3]
[1747238196946,65.9022,177.21,177.18,5.6429]
[1747238197148,65.9022,177.21,177.17,60.3]
[1747238197746,65.9022,177.21,177.18,5.6429]
[1747238199152,5.6425,177.2,177.17,65.9433]
[1747238199648,60.26,177.21,177.17,60.3]
[1747238200349,65.9022,177.21,177.18,5.6429]
[1747238201951,65.9022,177.21,177.19,5.6428]
[1747238202548,65.9022,177.21,177.18,5.643]
[1747238203151,5.6425,177.2,177.18,5.643]
[1747238203349,5.6425,177.2,177.17,65.9433]
[1747238204549,5.6425,177.2,177.18,5.6431]
[1747238205354,65.9023,177.21,177.18,5.6431]
[1747238208749,5.6424,177.2,177.18,5.6431]
[1747238208946,60.26,177.21,177.13,60.3]
[1747238209148,70.31801182,177.21,177.13,60.3]
[1747238209543,3.6789,177.2,177.13,60.3]
[1747238210351,5.6436,177.17,177.13,60.3]
[1747238210551,60.2,177.16,177.14,5.6444]
[1747238211052,65.8437,177.16,177.14,5.6444]
[1747238211753,60.2,177.16,177.14,5.6444]
[1747238212155,7.6789,177.2,177.13,60.3]
[1747238212156,4.0,177.2,177.13,60.3]
[1747238212452,4.0,177.26,177.14,60.18]
[1747238212654,4.0,177.26,177.21,5.6419]
[1747238213151,4.0,177.26,177.22,5.6416]
[1747238213450,5.6407,177.26,177.22,5.6416]
[1747238213852,5.6413,177.24,177.2,5.6422]
[1747238214052,60.18,177.23,177.2,5.6422]
[1747238214554,60.18,177.23,177.19,65.9426]
[1747238215053,60.18,177.23,177.2,5.6424]
[1747238215253,60.18,177.23,177.19,60.3]
[1747238215856,60.18,177.23,177.21,5.6419]
[1747238216058,5.641,177.25,177.21,5.6419]
[1747238216252,60.16,177.24,177.21,5.6419]
[1747238217157,65.8012,177.24,177.21,5.6419]
[1747238217356,60.16,177.24,177.21,5.6419]
[1747238217557,60.16,177.24,177.2,5.6423]
[1747238217757,60.16,177.24,177.19,60.3]
[1747238218056,60.16,177.24,177.19,65.9426]
[1747238218357,5.6421,177.22,177.19,60.3]
[1747238218551,60.16,177.24,177.19,60.3]
[1747238219559,5.6416,177.23,177.2,5.6422]
[1747238219755,60.16,177.24,177.19,60.3]
[1747238220159,5.6419,177.22,177.19,65.9428]
[1747238220367,60.16,177.24,177.19,60.3]
[1747238220661,5.642,177.22,177.19,60.3]
[1747238220852,60.16,177.24,177.19,60.3]
[1747238221859,5.6417,177.23,177.19,65.9426]
[1747238222261,5.6417,177.23,177.19,60.3]
[1747238222758,65.8013,177.24,177.19,60.3]
[1747238222957,10.05801182,177.25,177.19,60.3]
[1747238223157,60.12,177.24,177.19,60.3]
[1747238223960,60.12,177.23,177.19,60.3]
[1747238224668,60.12,177.23,177.21,5.6419]
[1747238227867,4.0,177.31,177.19,60.3]
[1747238228068,10.05801182,177.28,177.19,60.3]
[1747238228367,10.05801182,177.28,177.23,5.6412]
[1747238228566,60.14,177.3,177.19,60.3]
[1747238228757,60.08,177.29,177.19,60.3]
[1747238228957,60.14,177.3,177.24,5.641]
[1747238229165,60.08,177.28,177.24,5.641]
[1747238229566,65.7204,177.27,177.24,5.641]
[1747238229868,65.7204,177.27,177.23,5.6414]
[1747238230667,5.6406,177.26,177.23,5.6414]
[1747238231269,65.7204,177.27,177.23,5.6414]
[1747238231871,65.7204,177.27,177.24,5.6411]
[1747238232168,60.08,177.27,177.19,60.3]
[1747238232471,60.08,177.27,177.24,5.6409]
[1747238232671,60.08,177.27,177.19,60.3]
[1747238233273,60.14,177.3,177.19,60.3]
[1747238233475,60.06,177.27,177.23,5.6414]
[1747238234075,5.6405,177.26,177.23,5.6414]
[1747238234271,5.6405,177.26,177.21,5.6419]
[1747238234571,5.6423,177.21,177.16,60.12]
[1747238234771,60.06,177.22,177.16,65.7635]
[1747238234970,60.06,177.22,177.16,60.12]
[1747238235568,5.6426,177.2,177.16,65.7637]
[1747238235873,60.06,177.22,177.16,65.7637]
[1747238236175,60.06,177.22,177.16,60.12]
[1747238236676,70.11801182,177.22,177.16,60.12]
[1747238237377,5.6428,177.2,177.16,60.12]
[1747238237572,70.11801182,177.22,177.16,60.12]
[1747238238077,5.6427,177.2,177.16,65.7637]
[1747238238280,5.6427,177.2,177.16,60.12]
[1747238238573,5.6423,177.21,177.17,5.6433]
[1747238239173,60.06,177.22,177.16,60.12]
[1747238239374,60.02,177.23,177.16,60.12]
[1747238239872,60.02,177.24,177.16,60.12]
[1747238240580,65.6612,177.24,177.16,60.12]
[1747238241083,65.6612,177.24,177.2,5.6423]
[1747238241780,5.6412,177.24,177.2,5.6423]
[1747238241977,60.02,177.23,177.21,5.6421]
[1747238244583,60.02,177.23,177.2,5.6423]
[1747238245584,60.02,177.23,177.16,60.12]
[1747238246085,65.6618,177.23,177.18,5.643]
[1747238246385,60.02,177.23,177.18,5.643]
[1747238246781,5.6423,177.21,177.18,5.643]
[1747238246981,60.02,177.23,177.17,5.6433]
[1747238247281,5.6423,177.21,177.17,5.6433]
[1747238247481,60.02,177.23,177.17,5.6433]
[1747238247684,60.02,177.23,177.16,65.7636]
[1747238248080,60.02,177.23,177.16,60.12]
[1747238248585,5.643,177.19,177.16,60.12]
[1747238248980,60.02,177.23,177.16,65.7635]
[1747238249275,60.02,177.23,177.16,60.12]
[1747238249485,60.02,177.23,177.18,5.6431]
[1747238249785,60.02,177.23,177.16,60.12]
[1747238250085,5.6423,177.21,177.18,5.6429]
[1747238250284,60.02,177.23,177.18,5.6429]
[1747238250786,60.02,177.23,177.2,5.6424]
[1747238251175,59.96,177.23,177.2,5.6424]
[1747238251677,59.96,177.23,177.16,60.12]
[1747238252485,59.96,177.23,177.2,5.6423]
[1747238252690,65.6015,177.23,177.2,5.6423]
[1747238253084,59.96,177.23,177.2,5.6423]
[1747238253689,65.6016,177.23,177.2,5.6423]
[1747238254387,59.96,177.23,177.21,5.642]
[1747238254890,65.6015,177.23,177.16,60.12]
[1747238255992,59.96,177.23,177.16,60.12]
[1747238256289,59.96,177.23,177.18,5.6428]
[1747238256786,59.96,177.23,177.16,60.12]
[1747238257379,59.96,177.23,177.19,5.6425]
[1747238257581,59.96,177.23,177.16,60.12]
[1747238257980,59.96,177.23,177.2,5.6422]
[1747238258187,65.6016,177.23,177.16,60.12]
[1747238259289,65.6016,177.23,177.2,5.6422]
[1747238259889,65.6016,177.23,177.16,60.12]
[1747238260390,65.6016,177.23,177.2,5.6422]
[1747238262188,65.6016,177.23,177.21,5.6421]
[1747238262693,65.6016,177.23,177.2,5.6423]
[1747238262890,59.96,177.23,177.16,60.12]
[1747238263491,5.6422,177.21,177.18,5.643]
[1747238264587,59.96,177.23,177.18,5.643]
[1747238264792,5.6419,177.22,177.19,5.6426]
[1747238264992,59.96,177.23,177.16,60.12]
[1747238265491,5.642,177.22,177.19,5.6428]
[1747238266891,5.642,177.22,177.18,5.643]
[1747238268089,59.96,177.23,177.17,5.6433]
[1747238268694,5.6423,177.21,177.18,5.6429]
[1747238271891,5.6419,177.22,177.19,5.6427]
[1747238272196,59.86,177.21,177.16,60.12]
[1747238272398,59.86,177.23,177.16,60.12]
[1747238272699,65.5016,177.23,177.16,60.12]
[1747238273296,65.5016,177.23,177.19,5.6425]
[1747238273498,5.6419,177.22,177.19,5.6425]
[1747238273799,59.86,177.23,177.2,5.6422]
[1747238274001,59.86,177.23,177.16,60.12]
[1747238274298,59.86,177.23,177.19,5.6425]
[1747238274701,65.5017,177.23,177.16,60.12]
[1747238275503,65.5017,177.23,177.2,5.6422]
[1747238275804,59.84,177.23,177.16,60.12]
[1747238276199,5.6414,177.24,177.16,60.12]
[1747238276406,65.4814,177.24,177.16,60.12]
[1747238276703,65.4814,177.24,177.22,5.6418]
[1747238277205,5.6414,177.24,177.22,5.6418]
[1747238277406,65.4814,177.24,177.22,5.6418]
[1747238278406,59.84,177.24,177.22,5.6418]
[1747238279608,59.84,177.24,177.23,5.6415]
[1747238279910,4.0,177.26,177.16,60.12]
[1747238280204,59.82,177.25,177.17,1.8425]
[1747238280403,5.3937,177.3,177.17,1.8425]
[1747238280605,59.82,177.29,177.17,1.8425]
[1747238280805,59.82,177.28,177.17,1.8425]
[1747238281106,59.82,177.28,177.25,5.6406]
[1747238281307,59.82,177.28,177.22,59.82]
[1747238281711,65.4602,177.28,177.25,5.6406]
[1747238282007,59.82,177.28,177.25,5.6406]
[1747238282203,5.3937,177.3,177.24,5.641]
[1747238282409,59.82,177.29,177.24,5.641]
[1747238282908,5.6405,177.27,177.24,5.641]
[1747238283112,65.4405,177.27,177.24,5.641]
[1747238283306,65.4405,177.27,177.25,5.6408]
[1747238283609,59.8,177.27,177.25,5.6408]
[1747238284006,59.8,177.27,177.26,5.6405]
[1747238284211,59.8,177.28,177.22,59.82]
[1747238284416,4.0,177.31,177.22,59.82]
[1747238284706,63.8,177.31,177.3,5.6393]
[1747238285408,63.8,177.31,177.29,5.6395]
[1747238285612,63.8,177.31,177.27,59.82]
[1747238286303,59.8,177.31,177.27,59.82]
[1747238286607,59.8,177.31,177.3,5.6393]
[1747238287212,192.85784274,177.32,177.27,59.82]
[1747238287815,192.85784274,177.32,177.31,5.6389]
[1747238288307,133.07784274,177.32,177.31,5.6389]
[1747238288505,59.76,177.33,177.32,5.6386]
[1747238289105,69.4576,177.36,177.33,5.6382]
[1747238289312,59.76,177.35,177.33,5.6382]
[1747238289517,59.76,177.35,177.27,59.82]
[1747238289713,59.76,177.35,177.33,5.638]
[1747238290016,63.82,177.36,177.27,59.82]
[1747238290216,59.76,177.34,177.27,59.82]
[1747238290418,63.82,177.36,177.35,5.6377]
[1747238290612,63.76,177.36,177.35,5.6377]
[1747238290918,4.0,177.36,177.35,5.6377]
[1747238291321,63.76,177.36,177.35,5.6377]
[1747238291824,4.0,177.36,177.35,5.6377]
[1747238292028,63.74,177.36,177.35,5.6377]
[1747238292421,59.74,177.36,177.35,5.6377]
[1747238297029,5.6362,177.4,177.36,5.6371]
[1747238297235,59.7,177.37,177.36,5.6371]
[1747238300738,5.6362,177.4,177.36,5.6371]
[1747238300938,59.68,177.39,177.36,5.6371]
[1747238301637,59.68,177.39,177.37,5.637]
[1747238301834,59.68,177.39,177.31,59.8]
[1747238302240,65.3164,177.39,177.31,59.8]
[1747238303139,59.68,177.39,177.31,59.8]
[1747238303443,59.68,177.39,177.37,5.6368]
[1747238304337,59.68,177.39,177.36,5.6373]
[1747238304734,59.68,177.39,177.31,59.8]
[1747238304940,59.68,177.39,177.37,5.6368]
[1747238305340,59.68,177.39,177.31,59.8]
[1747238306039,10.05801182,177.38,177.33,5.6382]
[1747238306240,15.74971182,177.38,177.33,5.6382]
[1747238306544,15.74971182,177.38,177.31,59.8]
[1747238306747,15.74971182,177.38,177.35,5.6375]
[1747238307240,1.9288,177.38,177.31,59.8]
[1747238307446,59.68,177.39,177.31,59.8]
[1747238308543,59.68,177.39,177.37,5.637]
[1747238309147,59.68,177.39,177.36,5.6372]
[1747238309645,5.6368,177.38,177.31,59.8]
[1747238309846,5.6368,177.38,177.34,5.6377]
[1747238311051,75.37451182,177.39,177.35,5.6376]
[1747238311348,75.37451182,177.39,177.31,59.8]
[1747238311549,75.37451182,177.39,177.35,5.6375]
[1747238311950,5.6368,177.38,177.35,5.6375]
[1747238313149,75.37451182,177.39,177.35,5.6375]
[1747238314052,5.6368,177.38,177.35,5.6375]
[1747238314652,5.6368,177.38,177.34,5.6379]
[1747238315153,5.6368,177.38,177.35,5.6376]
[1747238315954,134.99451182,177.39,177.35,5.6376]
[1747238316155,129.35801182,177.39,177.31,59.8]
[1747238316457,5.6368,177.38,177.31,59.8]
[1747238316956,5.6368,177.38,177.35,5.6376]
[1747238317153,134.99451182,177.39,177.35,5.6376]
[1747238317458,129.35801182,177.39,177.36,5.6372]
[1747238317756,129.35801182,177.39,177.31,59.8]
[1747238317954,59.6,177.38,177.31,59.8]
[1747238318156,59.6,177.38,177.37,5.6368]
[1747238318359,59.6,177.38,177.31,59.8]
[1747238318853,59.6,177.38,177.37,5.6369]
[1747238320260,59.62,177.39,177.38,5.6367]
[1747238320464,4.0,177.41,177.31,59.8]
[1747238320759,59.58,177.39,177.38,5.6367]
[1747238321154,59.58,177.4,177.35,59.62]
[1747238321860,59.58,177.4,177.39,5.6364]
[1747238323161,4.0,177.41,177.4,5.6361]
[1747238323362,63.56,177.41,177.4,5.6361]
[1747238324565,4.0,177.41,177.4,5.6361]
[1747238325273,59.56,177.42,177.41,5.6358]
[1747238325673,69.67801182,177.47,177.35,59.62]
[1747238325877,59.56,177.46,177.35,59.62]
[1747238326373,5.6345,177.45,177.42,5.6354]
[1747238326575,59.56,177.46,177.35,59.62]
[1747238326972,5.6345,177.45,177.35,59.62]
[1747238327274,59.56,177.46,177.35,59.62]
[1747238327468,59.56,177.46,177.43,5.6349]
[1747238327973,65.1943,177.46,177.43,5.6349]
[1747238328878,65.1943,177.46,177.42,5.6353]
[1747238329672,65.1943,177.46,177.35,59.62]
[1747238330176,65.1943,177.46,177.43,5.635]
[1747238330575,65.1943,177.46,177.35,59.62]
[1747238330773,65.1943,177.46,177.43,5.6351]
[1747238331175,65.1943,177.46,177.35,59.62]
[1747238331476,59.56,177.46,177.35,59.62]
[1747238331870,65.1944,177.46,177.42,5.6353]
[1747238332175,59.56,177.46,177.42,5.6353]
[1747238332375,5.6346,177.45,177.42,5.6353]
[1747238332569,59.56,177.46,177.43,5.6351]
[1747238333074,65.1944,177.46,177.42,5.6354]
[1747238333579,59.56,177.46,177.42,5.6354]
[1747238333778,5.6345,177.45,177.41,5.6356]
[1747238334378,5.6349,177.44,177.41,5.6356]
[1747238334881,5.6347,177.45,177.35,59.62]
[1747238335374,59.56,177.46,177.43,5.6349]
[1747238335575,59.5,177.45,177.39,59.6]
[1747238335976,59.5,177.45,177.44,5.6346]
[1747238336173,59.5,177.45,177.39,59.6]
[1747238336982,59.5,177.45,177.43,5.6348]
[1747238337279,59.48,177.45,177.39,59.6]
[1747238338679,59.62,177.47,177.45,5.6343]
[1747238338878,59.48,177.46,177.39,59.6]
[1747238339076,59.48,177.46,177.44,5.6347]
[1747238339677,5.6341,177.47,177.44,5.6347]
[1747238339882,59.48,177.46,177.45,5.6345]
[1747238340381,59.48,177.46,177.39,59.6]
[1747238340581,10.05801182,177.45,177.4,5.6359]
[1747238340783,5.6358,177.41,177.35,59.46]
[1747238340982,59.46,177.4,177.35,59.46]
[1747238341179,59.46,177.4,177.36,5.6372]
[1747238342284,5.6365,177.39,177.37,5.637]
[1747238342584,59.46,177.4,177.37,5.637]
[1747238342778,59.46,177.4,177.35,59.46]
[1747238342983,65.0962,177.4,177.37,5.6369]
[1747238344692,65.0962,177.4,177.36,5.6372]
[1747238345079,59.46,177.4,177.35,59.46]
[1747238345383,10.05801182,177.39,177.31,59.46]
[1747238345584,5.6369,177.38,177.35,5.6376]
[1747238346386,5.6369,177.38,177.31,59.46]
[1747238346586,5.6371,177.37,177.32,1.8076]
[1747238346788,5.6371,177.37,177.31,59.46]
[1747238346986,59.44,177.36,177.31,59.46]
[1747238348088,59.44,177.36,177.34,5.6378]
[1747238349292,5.6377,177.35,177.31,59.46]
[1747238349794,69.49801182,177.36,177.29,492.8194]
[1747238349991,69.49801182,177.36,177.29,546.64]
[1747238350285,5.6383,177.33,177.29,65.0995]
[1747238350487,59.44,177.32,177.29,65.0995]
[1747238350690,59.44,177.32,177.29,59.46]
[1747238350882,59.44,177.32,177.29,65.0996]
[1747238351691,65.0786,177.32,177.29,65.0996]
[1747238352285,59.44,177.32,177.29,59.46]
[1747238353191,59.44,177.32,177.31,5.6389]
[1747238353387,59.42,177.36,177.29,59.46]
[1747238353582,9.6368,177.38,177.34,5.6377]
[1747238353788,59.42,177.39,177.34,59.48]
[1747238354191,10.05801182,177.43,177.34,59.48]
[1747238354391,65.0555,177.42,177.39,5.6364]
[1747238354693,59.42,177.41,177.39,5.6364]
[1747238354886,59.42,177.41,177.34,59.48]
[1747238355093,65.0558,177.41,177.34,59.48]
[1747238355587,59.42,177.41,177.34,59.48]
[1747238356192,5.6363,177.4,177.37,5.6369]
[1747238356990,65.0559,177.41,177.38,5.6366]
[1747238358291,65.0559,177.41,177.39,5.6363]
[1747238358488,59.42,177.41,177.39,5.6363]
[1747238358687,59.42,177.41,177.34,59.48]
[1747238358894,59.4,177.41,177.34,59.48]
[1747238359392,59.4,177.42,177.34,59.48]
[1747238359592,59.4,177.42,177.4,5.636]
[1747238359891,59.4,177.45,177.38,59.48]
[1747238360088,59.4,177.45,177.42,5.6354]
[1747238360391,65.0347,177.45,177.42,5.6354]
[1747238361495,59.4,177.45,177.38,59.48]
[1747238362190,59.38,177.44,177.38,59.48]
[1747238362391,59.38,177.44,177.43,5.6351]
[1747238362791,59.38,177.44,177.38,59.48]
[1747238364696,59.38,177.44,177.42,5.6352]
[1747238364997,59.38,177.44,177.38,59.48]
[1747238365499,59.38,177.44,177.42,5.6354]
[1747238366397,59.38,177.44,177.38,59.48]
[1747238366997,5.6353,177.43,177.4,5.6359]
[1747238369095,65.0149,177.44,177.41,5.6357]
[1747238371802,59.38,177.44,177.41,5.6357]
[1747238372599,65.0149,177.44,177.41,5.6357]
[1747238372997,59.38,177.44,177.41,5.6357]
[1747238373599,59.38,177.44,177.4,5.636]
[1747238376599,65.0149,177.44,177.4,5.636]
[1747238376999,59.38,177.44,177.41,5.6357]
[1747238377200,59.38,177.44,177.38,59.48]
[1747238377495,59.38,177.44,177.4,5.6359]
[1747238377898,69.43801182,177.44,177.35,1.8373]
[1747238378102,69.43801182,177.44,177.35,59.32]
[1747238378496,5.6351,177.43,177.38,5.6365]
[1747238378902,75.07301182,177.44,177.39,5.6363]
[1747238379101,75.07301182,177.44,177.35,59.32]
[1747238379502,75.07301182,177.44,177.39,5.6361]
[1747238379803,69.43801182,177.44,177.35,59.32]
[1747238380401,59.38,177.44,177.35,59.32]
[1747238380598,59.38,177.44,177.36,1.7516]
[1747238380804,59.32,177.45,177.43,5.6349]
[1747238381004,59.3,177.44,177.43,5.6349]
[1747238381205,59.3,177.44,177.36,1.7516]
[1747238381504,59.3,177.44,177.42,5.6354]
[1747238383307,59.3,177.44,177.43,5.6351]
[1747238384610,59.32,177.45,177.44,5.6348]
[1747238384905,59.28,177.45,177.39,59.32]
[1747238385107,59.28,177.45,177.44,5.6348]
[1747238385607,13.85261182,177.47,177.45,5.6343]
[1747238385809,59.28,177.46,177.45,5.6343]
[1747238386210,13.85261182,177.47,177.44,5.6348]
[1747238386409,59.26,177.46,177.44,5.6348]
[1747238386610,64.8943,177.46,177.39,59.32]
[1747238386812,64.8943,177.46,177.42,5.6353]
[1747238387510,59.26,177.46,177.38,59.32]
[1747238387904,5.6347,177.45,177.41,5.6356]
[1747238388104,59.26,177.46,177.38,59.32]
[1747238388307,64.8943,177.46,177.42,5.6352]
[1747238388505,59.26,177.46,177.38,59.32]
[1747238389310,59.26,177.5,177.38,69.37801182]
[1747238389513,59.26,177.5,177.39,3.8073]
[1747238389805,10.05801182,177.48,177.39,3.8073]
[1747238391214,5.6339,177.47,177.39,3.8073]
[1747238391413,59.24,177.46,177.39,3.8073]
[1747238391910,59.24,177.46,177.43,5.6349]
[1747238392109,59.24,177.46,177.39,3.8073]
[1747238392806,59.24,177.46,177.38,59.32]
[1747238392807,10.05801182,177.45,177.4,5.636]
[1747238393414,5.6349,177.44,177.4,5.636]
[1747238393613,5.6349,177.44,177.41,5.6357]
[1747238393813,10.05801182,177.42,177.38,59.32]
[1747238394108,69.29801182,177.42,177.38,59.32]
[1747238394813,69.29801182,177.42,177.39,5.6362]
[1747238395014,69.29801182,177.42,177.38,59.32]
[1747238395718,59.24,177.42,177.38,59.32]
[1747238396915,59.24,177.42,177.41,5.6358]
[1747238401921,59.24,177.42,177.32,3.6842]
[1747238402820,59.24,177.42,177.33,59.22]
[1747238404020,59.24,177.42,177.41,5.6358]
[1747238404421,59.24,177.42,177.33,59.22]
[1747238405022,59.24,177.42,177.4,5.6358]
[1747238405320,59.24,177.42,177.35,59.22]
[1747238405521,64.8756,177.42,177.39,5.6363]
[1747238405820,59.24,177.42,177.35,59.22]
[1747238406021,5.6363,177.4,177.37,5.6369]
[1747238406221,59.24,177.42,177.37,5.6369]
[1747238406421,59.24,177.42,177.35,59.22]
[1747238406926,64.7254,177.41,177.31,59.22]
[1747238408027,4.0,177.4,177.27,59.22]
[1747238408720,1.03645137,177.39,177.27,59.22]
[1747238408923,59.2,177.38,177.27,59.22]
[1747238409424,64.8368,177.38,177.27,59.22]
[1747238410025,59.2,177.38,177.27,59.22]
[1747238410530,64.8368,177.38,177.34,5.6377]
[1747238410827,64.8368,177.38,177.27,59.22]
[1747238410828,59.2,177.38,177.27,59.22]
[1747238411035,59.2,177.38,177.36,5.6373]
[1747238411326,59.2,177.38,177.27,59.22]
[1747238411524,9.6362,177.4,177.27,59.22]
[1747238411728,59.22,177.39,177.27,59.22]
[1747238411927,59.22,177.38,177.27,59.22]
[1747238412228,59.22,177.38,177.37,5.637]